fUST/lending_fUST_20250729
["ID","MTS","AMOUNT","RATE_DAILY","PERIOD"]
[375833713,1753755048349,-460.0,0.00019726,2]
[375833715,1753755048359,-460.0,0.00019726,2]
[375833717,1753755048368,-1446.29,0.00019726,2]
[375833719,1753755048379,-516.06,0.00019726,2]
[375833721,1753755048388,-1871.31,0.00019726,2]
[375833723,1753755048398,-460.0,0.00019726,2]
[375833725,1753755048408,-460.0,0.00019726,2]
[375833727,1753755048417,-1550.07,0.00019726,2]
[375833729,1753755048427,-551.74,0.00019726,2]
[375833731,1753755048436,-765.66,0.00019726,2]
[375833733,1753755048446,-315.72108645,0.00019726,2]
[375833735,1753755048456,-460.0,0.00019726,2]
[375833737,1753755048465,-460.0,0.00019726,2]
[375833739,1753755048475,-1615.99,0.00019726,2]
[375833741,1753755048485,-460.0,0.00019726,2]
[375833743,1753755048495,-567.82,0.00019726,2]
[375833745,1753755048504,-460.0,0.00019726,2]
[375833747,1753755048513,-727.19,0.00019726,2]
[375833749,1753755048523,-460.0,0.00019726,2]
[375833751,1753755048532,-460.0,0.00019726,2]
[375833753,1753755048542,-460.0,0.00019726,2]
[375833755,1753755048552,-460.0,0.00019726,2]
[375833757,1753755048562,-460.0,0.00019726,2]
[375833759,1753755048572,-460.0,0.00019726,2]
[375833761,1753755048582,-460.0,0.00019726,2]
[375833763,1753755048592,-460.0,0.00019726,2]
[375833765,1753755048603,-500.0,0.00019773,2]
[375833767,1753755048614,-1000.0,0.000198,6]
[375833769,1753755048623,-151.0,0.000198,2]
[375833771,1753755048636,-151.0,0.000199,2]
[375833773,1753755048649,-504.02442396,0.00019973,2]
[375833775,1753755048658,-500.0,0.00019973,2]
[375833777,1753755048668,-507.01081272,0.00019973,2]
[375833780,1753755048679,-500.0,0.00019973,2]
[375833782,1753755048689,-500.0,0.00019973,2]
[375833784,1753755048698,-500.0,0.00019973,2]
[375833786,1753755048708,-500.0,0.00019973,2]
[375833788,1753755048720,-500.0,0.00019973,2]
[375833790,1753755048730,-460.0,0.0002,2]
[375833792,1753755048740,-406.18951343,0.0002,2]
[375833794,1753755048749,-997.54,0.0002,2]
[375833796,1753755048759,-465.37787497,0.0002,2]
[375833798,1753755048768,-460.0,0.0002,2]
[375833800,1753755048778,-460.0,0.0002,2]
[375833801,1753755048787,-460.0,0.0002,2]
[375833804,1753755048797,-601.43046983,0.0002,2]
[375833806,1753755048809,-460.0,0.0002,2]
[375833808,1753755048820,-448.27908609,0.0002,2]
[375833810,1753755048829,-2061.92,0.0002,2]
[375833812,1753755048839,-460.0,0.0002,2]
[375833814,1753755048849,-280.66267025,0.0002,2]
[375833816,1753755048858,-576.80708773,0.0002,2]
[375833818,1753755048868,-460.0,0.0002,2]
[375833820,1753755048877,-460.0,0.0002,2]
[375833822,1753755048887,-460.0,0.0002,2]
[375833824,1753755048896,-460.0,0.0002,2]
[375833825,1753755048907,-460.0,0.0002,2]
[375833827,1753755048917,-465.61557557,0.0002,2]
[375833829,1753755048926,-460.0,0.0002,2]
[375833831,1753755048937,-460.0,0.0002,2]
[375833833,1753755048947,-460.0,0.0002,2]
[375833835,1753755048957,-460.0,0.0002,2]
[375833837,1753755048967,-460.0,0.0002,2]
[375833839,1753755048977,-460.0,0.0002,2]
[375833841,1753755048987,-207.97518582,0.0002,2]
[375833843,1753755048996,-469.24068319,0.0002,2]
[375833845,1753755049006,-460.0,0.0002,2]
[375833847,1753755049016,-1326.66,0.0002,2]
[375833849,1753755049025,-460.0,0.0002,2]
[375833851,1753755049036,-460.0,0.0002,2]
[375833853,1753755049046,-460.0,0.0002,2]
[375833855,1753755049055,-740.33,0.0002,2]
[375833857,1753755049066,-460.0,0.0002,2]
[375833859,1753755049076,-460.89,0.0002,2]
[375833861,1753755049085,-460.0,0.0002,2]
[375833863,1753755049095,-460.0,0.0002,2]
[375833865,1753755049106,-460.0,0.0002,2]
[375833867,1753755049115,-466.13213713,0.0002,2]
[375833869,1753755049125,-460.0,0.0002,2]
[375833871,1753755049135,-478.91,0.0002,2]
[375833873,1753755049145,-460.0,0.0002,2]
[375833875,1753755049155,-530.10996507,0.0002,2]
[375833877,1753755049165,-460.0,0.0002,2]
[375833879,1753755049175,-169.60272768,0.0002,2]
[375833881,1753755049184,-460.0,0.0002,2]
[375833883,1753755049194,-460.0,0.0002,2]
[375833885,1753755049204,-460.0,0.0002,2]
[375833887,1753755049214,-460.0,0.0002,2]
[375833889,1753755049224,-664.25,0.0002,2]
[375833891,1753755049236,-460.0,0.0002,2]
[375833893,1753755049246,-254.76777445,0.0002,2]
[375833895,1753755049257,-460.0,0.0002,2]
[375833897,1753755049266,-460.0,0.0002,2]
[375833899,1753755049275,-460.0,0.0002,2]
[375833901,1753755049285,-460.0,0.0002,2]
[375833903,1753755049295,-460.0,0.0002,2]
[375833904,1753755049304,-460.0,0.0002,2]
[375833906,1753755049314,-460.0,0.0002,2]
[375833908,1753755049324,-460.0,0.0002,2]
[375833910,1753755049334,-460.0,0.0002,2]
[375833912,1753755049344,-460.0,0.0002,2]
[375833914,1753755049354,-460.0,0.0002,2]
[375833917,1753755049363,-460.0,0.0002,2]
[375833919,1753755049372,-393.29310321,0.0002,2]
[375833921,1753755049382,-489.84,0.0002,2]
[375833923,1753755049391,-1311.07,0.0002,2]
[375833925,1753755049401,-460.0,0.0002,2]
[375833927,1753755049410,-460.0,0.0002,2]
[375833929,1753755049420,-504.45068755,0.0002,2]
[375833931,1753755049430,-468.26229708,0.0002,2]
[375833933,1753755049439,-460.0,0.0002,2]
[375833934,1753755049449,-460.0,0.0002,2]
[375833937,1753755049459,-460.0,0.0002,2]
[375833939,1753755049468,-460.0,0.0002,2]
[375833941,1753755049478,-460.0,0.0002,2]
[375833942,1753755049487,-4057.2,0.0002,2]
[375833944,1753755049496,-460.0,0.0002,2]
[375833946,1753755049506,-460.0,0.0002,2]
[375833948,1753755049516,-435.22072442,0.0002,2]
[375833950,1753755049525,-485.17729785,0.0002,2]
[375833952,1753755049535,-460.0,0.0002,2]
[375833954,1753755049546,-460.0,0.0002,2]
[375833956,1753755049556,-460.0,0.0002,2]
[375833958,1753755049569,-460.0,0.0002,2]
[375833960,1753755049579,-621.58,0.0002,2]
[375833962,1753755049588,-460.0,0.0002,2]
[375833964,1753755049598,-460.0,0.0002,2]
[375833966,1753755049607,-460.0,0.0002,2]
[375833968,1753755049617,-460.0,0.0002,2]
[375833970,1753755049626,-460.0,0.0002,2]
[375833972,1753755049637,-460.0,0.0002,2]
[375833974,1753755049648,-460.0,0.0002,2]
[375833976,1753755049658,-460.0,0.0002,2]
[375833978,1753755049667,-460.0,0.0002,2]
[375833980,1753755049678,-460.0,0.0002,2]
[375833982,1753755049688,-460.0,0.0002,2]
[375833983,1753755049698,-694.99,0.0002,2]
[375833985,1753755049709,-460.0,0.0002,2]
[375833987,1753755049721,-455.24095248,0.0002,2]
[375833989,1753755049731,-501.7,0.0002,2]
[375833991,1753755049742,-460.0,0.0002,2]
[375833993,1753755049751,-460.0,0.0002,2]
[375833995,1753755049761,-460.0,0.0002,2]
[375833997,1753755049770,-672.37,0.0002,2]
[375833999,1753755049780,-460.0,0.0002,2]
[375834001,1753755049790,-460.0,0.0002,2]
[375834003,1753755049800,-460.0,0.0002,2]
[375834005,1753755049809,-460.0,0.0002,2]
[375834007,1753755049821,-460.0,0.0002,2]
[375834009,1753755049830,-460.0,0.0002,2]
[375834011,1753755049840,-464.6650665,0.0002,2]
[375834013,1753755049850,-460.0,0.0002,2]
[375834015,1753755049859,-466.45621179,0.0002,2]
[375834017,1753755049869,-460.0,0.0002,2]
[375834019,1753755049880,-460.0,0.0002,2]
[375834021,1753755049890,-460.0,0.0002,2]
[375834023,1753755049899,-460.0,0.0002,2]
[375834025,1753755049909,-519.75,0.0002,2]
[375834027,1753755049918,-460.0,0.0002,2]
[375834029,1753755049928,-460.0,0.0002,2]
[375834031,1753755049938,-460.0,0.0002,2]
[375834033,1753755049948,-460.0,0.0002,2]
[375834035,1753755049958,-2280.38,0.0002,2]
[375834037,1753755049968,-503.62,0.0002,2]
[375834039,1753755049977,-1575.63,0.0002,2]
[375834041,1753755049986,-463.10790426,0.0002,2]
[375834043,1753755049996,-460.0,0.0002,2]
[375834045,1753755050005,-460.0,0.0002,2]
[375834046,1753755050015,-460.0,0.0002,2]
[375834048,1753755050025,-460.0,0.0002,2]
[375834050,1753755050035,-460.0,0.0002,2]
[375834052,1753755050045,-460.0,0.0002,2]
[375834054,1753755050055,-460.0,0.0002,2]
[375834056,1753755050066,-770.62,0.0002,2]
[375834058,1753755050076,-723.15,0.0002,2]
[375834060,1753755050085,-460.0,0.0002,2]
[375834062,1753755050096,-460.0,0.0002,2]
[375834064,1753755050106,-460.0,0.0002,2]
[375834066,1753755050117,-460.0,0.0002,2]
[375834068,1753755050127,-460.0,0.0002,2]
[375834070,1753755050137,-460.0,0.0002,2]
[375834072,1753755050148,-2380.13,0.0002,2]
[375834074,1753755050158,-472.39,0.0002,2]
[375834076,1753755050168,-460.0,0.0002,2]
[375834078,1753755050178,-460.0,0.0002,2]
[375834080,1753755050189,-578.18,0.0002,2]
[375834082,1753755050199,-460.0,0.0002,2]
[375834084,1753755050209,-1619.07,0.0002,2]
[375834086,1753755050219,-460.0,0.0002,2]
[375834088,1753755050229,-460.0,0.0002,2]
[375834090,1753755050240,-5860.54,0.0002,2]
[375834092,1753755050250,-460.0,0.0002,2]
[375834094,1753755050262,-505.03,0.0002,2]
[375834097,1753755050272,-460.0,0.0002,2]
[375834098,1753755050282,-460.0,0.0002,2]
[375834100,1753755050292,-460.0,0.0002,2]
[375834102,1753755050302,-501.06,0.0002,2]
[375834104,1753755050311,-460.0,0.0002,2]
[375834106,1753755050324,-460.0,0.0002,2]
[375834108,1753755050334,-460.0,0.0002,2]
[375834110,1753755050344,-477.52127414,0.0002,2]
[375834112,1753755050354,-460.0,0.0002,2]
[375834114,1753755050364,-460.0,0.0002,2]
[375834116,1753755050374,-1446.29,0.0002,2]
[375834118,1753755050383,-516.06,0.0002,2]
[375834120,1753755050394,-1871.31,0.0002,2]
[375834122,1753755050404,-460.0,0.0002,2]
[375834124,1753755050414,-460.0,0.0002,2]
[375834126,1753755050424,-1550.07,0.0002,2]
[375834128,1753755050434,-551.74,0.0002,2]
[375834130,1753755050444,-765.66,0.0002,2]
[375834132,1753755050453,-460.0,0.0002,2]
[375834134,1753755050463,-460.0,0.0002,2]
[375834135,1753755050473,-1615.99,0.0002,2]
[375834138,1753755050484,-460.0,0.0002,2]
[375834139,1753755050494,-567.82,0.0002,2]
[375834141,1753755050504,-460.0,0.0002,2]
[375834143,1753755050515,-727.19,0.0002,2]
[375834145,1753755050525,-460.0,0.0002,2]
[375834147,1753755050536,-460.0,0.0002,2]
[375834149,1753755050545,-460.0,0.0002,2]
[375834151,1753755050555,-460.0,0.0002,2]
[375834153,1753755050568,-460.0,0.0002,2]
[375834155,1753755050578,-460.0,0.0002,2]
[375834157,1753755050588,-460.0,0.0002,2]
[375834158,1753755050598,-841.06558547,0.00020002,2]
[375834159,1753755050608,-12637.12721421,0.00020002,2]
[375834160,1753755050618,-214.91980558,0.00020002,2]
[375834161,1753755050628,-160.0,0.00020013,2]
[375834162,1753755050640,-160.0,0.00020013,2]
[375834163,1753755050650,-312.16666667,0.00020013,2]
[375834164,1753755050659,-160.0,0.00020013,2]
[375834165,1753755050669,-216.06083566,0.00020013,2]
[375834166,1753755050679,-454.6043428,0.00020013,2]
[375834167,1753755050689,-160.0,0.00020013,2]
[375834168,1753755050699,-160.0,0.00020013,2]
[375834170,1753755050709,-160.0,0.00020013,2]
[375834171,1753755050721,-160.0,0.00020013,2]
[375834173,1753755050731,-231.34820253,0.00020013,2]
[375834175,1753755050741,-1000.0,0.00020021,2]
[375834177,1753755050751,-3236.33533662,0.00020136,2]
[375834179,1753755050760,-158.77995048,0.00020136,2]
[375834180,1753755050770,-23810.57919042,0.00020136,2]
[375834182,1753755050780,-153.76381461,0.00020187,2]
[375834185,1753755050791,-222.915586,0.00020187,2]
[375834186,1753755050801,-984.79209584,0.00020189,2]
[375834188,1753755050811,-588.00670403,0.00020273,2]
[375834190,1753755050823,-997.54,0.00020273,2]
[375834192,1753755050834,-464.30695093,0.00020273,2]
[375834194,1753755050844,-460.0,0.00020273,2]
[375834196,1753755050854,-460.0,0.00020273,2]
[375834198,1753755050865,-460.0,0.00020273,2]
[375834200,1753755050875,-460.0,0.00020273,2]
[375834202,1753755050885,-2061.92,0.00020273,2]
[375834204,1753755050894,-464.6774423,0.00020273,2]
[375834206,1753755050903,-511.40957941,0.00020273,2]
[375834208,1753755050914,-460.0,0.00020273,2]
[375834210,1753755050923,-460.0,0.00020273,2]
[375834212,1753755050933,-460.0,0.00020273,2]
[375834214,1753755050943,-586.23895211,0.00020273,2]
[375834216,1753755050953,-460.0,0.00020273,2]
[375834218,1753755050963,-471.62233797,0.00020273,2]
[375834220,1753755050972,-460.0,0.00020273,2]
[375834222,1753755050982,-1326.66,0.00020273,2]
[375834224,1753755050992,-460.0,0.00020273,2]
[375834226,1753755051001,-460.0,0.00020273,2]
[375834228,1753755051012,-460.0,0.00020273,2]
[375834230,1753755051021,-740.33,0.00020273,2]
[375834232,1753755051031,-281.98128384,0.00020273,2]
[375834234,1753755051041,-460.89,0.00020273,2]
[375834236,1753755051051,-460.0,0.00020273,2]
[375834238,1753755051061,-460.0,0.00020273,2]
[375834240,1753755051073,-460.0,0.00020273,2]
[375834242,1753755051083,-464.43303059,0.00020273,2]
[375834244,1753755051092,-478.91,0.00020273,2]
[375834246,1753755051102,-460.0,0.00020273,2]
[375834247,1753755051111,-460.0,0.00020273,2]
[375834249,1753755051121,-458.44885623,0.00020273,2]
[375834251,1753755051131,-460.0,0.00020273,2]
[375834253,1753755051140,-187.2576027,0.00020273,2]
[375834255,1753755051150,-460.0,0.00020273,2]
[375834257,1753755051159,-664.25,0.00020273,2]
[375834259,1753755051169,-460.0,0.00020273,2]
[375834275,1753755051326,-460.0,0.00020273,2]
[375834277,1753755051338,-460.0,0.00020273,2]
[375834279,1753755051348,-460.0,0.00020273,2]
[375834281,1753755051358,-460.0,0.00020273,2]
[375834283,1753755051368,-460.0,0.00020273,2]
[375834285,1753755051378,-460.0,0.00020273,2]
[375834286,1753755051388,-552.56667317,0.00020273,2]
[375834288,1753755051398,-460.0,0.00020273,2]
[375834290,1753755051408,-436.47510739,0.00020273,2]
[375834292,1753755051418,-489.84,0.00020273,2]
[375834294,1753755051428,-1311.07,0.00020273,2]
[375834296,1753755051437,-460.0,0.00020273,2]
[375834298,1753755051447,-460.0,0.00020273,2]
[375834300,1753755051457,-234.15247166,0.00020273,2]
[375834302,1753755051466,-460.0,0.00020273,2]
[375834304,1753755051476,-460.0,0.00020273,2]
[375834306,1753755051485,-460.0,0.00020273,2]
[375834308,1753755051495,-4057.2,0.00020273,2]
[375834310,1753755051506,-460.0,0.00020273,2]
[375834312,1753755051516,-460.0,0.00020273,2]
[375834314,1753755051525,-460.0,0.00020273,2]
[375834316,1753755051534,-460.0,0.00020273,2]
[375834318,1753755051544,-460.0,0.00020273,2]
[375834320,1753755051554,-621.58,0.00020273,2]
[375834322,1753755051564,-460.0,0.00020273,2]
[375834324,1753755051577,-460.0,0.00020273,2]
[375834326,1753755051586,-460.0,0.00020273,2]
[375834328,1753755051595,-460.0,0.00020273,2]
[375834330,1753755051604,-460.0,0.00020273,2]
[375834332,1753755051614,-460.0,0.00020273,2]
[375834334,1753755051623,-460.0,0.00020273,2]
[375834336,1753755051636,-460.0,0.00020273,2]
[375834338,1753755051645,-460.0,0.00020273,2]
[375834340,1753755051655,-694.99,0.00020273,2]
[375834342,1753755051664,-460.0,0.00020273,2]
[375834344,1753755051674,-501.7,0.00020273,2]
[375834345,1753755051684,-460.0,0.00020273,2]
[375834347,1753755051693,-460.0,0.00020273,2]
[375834349,1753755051703,-460.0,0.00020273,2]
[375834351,1753755051714,-460.0,0.00020273,2]
[375834353,1753755051724,-672.37,0.00020273,2]
[375834355,1753755051736,-460.0,0.00020273,2]
[375834357,1753755051746,-460.0,0.00020273,2]
[375834359,1753755051756,-460.0,0.00020273,2]
[375834361,1753755051765,-460.0,0.00020273,2]
[375834363,1753755051774,-460.0,0.00020273,2]
[375834365,1753755051784,-460.0,0.00020273,2]
[375834367,1753755051794,-460.0,0.00020273,2]
[375834369,1753755051804,-466.23202035,0.00020273,2]
[375834371,1753755051817,-460.0,0.00020273,2]
[375834373,1753755051830,-460.0,0.00020273,2]
[375834375,1753755051839,-519.75,0.00020273,2]
[375834377,1753755051849,-460.0,0.00020273,2]
[375834379,1753755051858,-460.0,0.00020273,2]
[375834381,1753755051868,-460.0,0.00020273,2]
[375834383,1753755051878,-460.0,0.00020273,2]
[375834385,1753755051888,-2280.38,0.00020273,2]
[375834387,1753755051897,-503.62,0.00020273,2]
[375834389,1753755051907,-1575.63,0.00020273,2]
[375834391,1753755051917,-460.0,0.00020273,2]
[375834393,1753755051926,-460.0,0.00020273,2]
[375834395,1753755051935,-460.0,0.00020273,2]
[375834397,1753755051945,-460.0,0.00020273,2]
[375834399,1753755051955,-460.0,0.00020273,2]
[375834401,1753755051964,-460.0,0.00020273,2]
[375834403,1753755051973,-770.62,0.00020273,2]
[375834405,1753755051984,-723.15,0.00020273,2]
[375834407,1753755051993,-460.0,0.00020273,2]
[375834409,1753755052003,-460.0,0.00020273,2]
[375834411,1753755052013,-460.0,0.00020273,2]
[375834413,1753755052023,-466.51538751,0.00020273,2]
[375834415,1753755052033,-463.58039612,0.00020273,2]
[375834416,1753755052043,-460.0,0.00020273,2]
[375834418,1753755052054,-2380.13,0.00020273,2]
[375834420,1753755052063,-472.39,0.00020273,2]
[375834422,1753755052075,-460.0,0.00020273,2]
[375834424,1753755052088,-578.18,0.00020273,2]
[375834426,1753755052098,-460.0,0.00020273,2]
[375834428,1753755052108,-1619.07,0.00020273,2]
[375834430,1753755052118,-460.0,0.00020273,2]
[375834432,1753755052127,-460.0,0.00020273,2]
[375834434,1753755052138,-5860.54,0.00020273,2]
[375834436,1753755052148,-468.93859922,0.00020273,2]
[375834438,1753755052158,-505.03,0.00020273,2]
[375834440,1753755052168,-460.0,0.00020273,2]
[375834442,1753755052177,-460.0,0.00020273,2]
[375834444,1753755052187,-460.0,0.00020273,2]
[375834446,1753755052197,-463.30510584,0.00020273,2]
[375834448,1753755052207,-460.0,0.00020273,2]
[375834450,1753755052216,-501.06,0.00020273,2]
[375834451,1753755052226,-463.75741096,0.00020273,2]
[375834453,1753755052235,-460.0,0.00020273,2]
[375834455,1753755052245,-460.0,0.00020273,2]
[375834457,1753755052254,-1446.29,0.00020273,2]
[375834459,1753755052265,-516.06,0.00020273,2]
[375834461,1753755052275,-1871.31,0.00020273,2]
[375834463,1753755052285,-460.0,0.00020273,2]
[375834465,1753755052295,-460.0,0.00020273,2]
[375834467,1753755052304,-1550.07,0.00020273,2]
[375834469,1753755052314,-551.74,0.00020273,2]
[375834471,1753755052326,-765.66,0.00020273,2]
[375834473,1753755052336,-460.0,0.00020273,2]
[375834475,1753755052346,-460.0,0.00020273,2]
[375834477,1753755052355,-460.0,0.00020273,2]
[375834479,1753755052365,-567.82,0.00020273,2]
[375834481,1753755052375,-460.0,0.00020273,2]
[375834483,1753755052385,-1615.99,0.00020273,2]
[375834485,1753755052395,-727.19,0.00020273,2]
[375834487,1753755052404,-460.0,0.00020273,2]
[375834489,1753755052415,-460.0,0.00020273,2]
[375834491,1753755052424,-440.0,0.00020273,2]
[375834493,1753755052433,-460.0,0.00020273,2]
[375834495,1753755052443,-460.0,0.00020273,2]
[375834497,1753755052452,-460.0,0.00020273,2]
[375834499,1753755052462,-501.72687444,0.00020321,2]
[375834501,1753755052471,-829.52,0.00020438,3]
[375834502,1753755052480,-414.76,0.00020438,3]
[375834504,1753755052490,-508.44969364,0.00020521,2]
[375834507,1753755052500,-1000.0,0.00020521,2]
[375834508,1753755052510,-1009.14387867,0.00020521,2]
[375834510,1753755052520,-1014.56090527,0.00020521,2]
[375834512,1753755052529,-1000.0,0.00020521,2]
[375834514,1753755052539,-1000.0,0.00020521,2]
[375834516,1753755052549,-151.0,0.00020547,2]
[375834518,1753755052559,-151.0,0.00020547,2]
[375834520,1753755052574,-997.54,0.00020547,2]
[375834522,1753755052584,-549.313696,0.00020547,2]
[375834524,1753755052593,-460.0,0.00020547,2]
[375834526,1753755052604,-460.0,0.00020547,2]
[375834528,1753755052614,-460.0,0.00020547,2]
[375834530,1753755052624,-460.0,0.00020547,2]
[375834532,1753755052635,-2061.92,0.00020547,2]
[375834534,1753755052647,-460.0,0.00020547,2]
[375834536,1753755052657,-460.0,0.00020547,2]
[375834538,1753755052667,-158.62398829,0.00020547,2]
[375834541,1753755052677,-460.0,0.00020547,2]
[375834542,1753755052687,-460.0,0.00020547,2]
[375834544,1753755052697,-1326.66,0.00020547,2]
[375834546,1753755052707,-460.0,0.00020547,2]
[375834549,1753755052720,-460.0,0.00020547,2]
[375834550,1753755052730,-460.0,0.00020547,2]
[375834552,1753755052739,-740.33,0.00020547,2]
[375834554,1753755052748,-460.89,0.00020547,2]
[375834556,1753755052758,-460.0,0.00020547,2]
[375834558,1753755052767,-478.91,0.00020547,2]
[375834561,1753755052785,-460.0,0.00020547,2]
[375834564,1753755052800,-460.0,0.00020547,2]
[375834566,1753755052815,-460.0,0.00020547,2]
[375834568,1753755052830,-460.0,0.00020547,2]
[375834571,1753755052841,-664.25,0.00020547,2]
[375834573,1753755052856,-460.0,0.00020547,2]
[375834575,1753755052870,-460.0,0.00020547,2]
[375834578,1753755052884,-460.0,0.00020547,2]
[375834580,1753755052899,-460.0,0.00020547,2]
[375834583,1753755052914,-460.0,0.00020547,2]
[375834585,1753755052927,-460.0,0.00020547,2]
[375834587,1753755052942,-460.0,0.00020547,2]
[375834590,1753755052957,-407.63402983,0.00020547,2]
[375834592,1753755052971,-1311.07,0.00020547,2]
[375834593,1753755052983,-489.84,0.00020547,2]
[375834594,1753755052998,-460.0,0.00020547,2]
[375834595,1753755053010,-460.0,0.00020547,2]
[375834596,1753755053023,-460.0,0.00020547,2]
[375834597,1753755053039,-460.0,0.00020547,2]
[375834598,1753755053051,-460.0,0.00020547,2]
[375834599,1753755053065,-460.0,0.00020547,2]
[375834600,1753755053077,-4057.2,0.00020547,2]
[375834601,1753755053088,-460.0,0.00020547,2]
[375834602,1753755053102,-460.0,0.00020547,2]
[375834603,1753755053113,-460.0,0.00020547,2]
[375834604,1753755053127,-460.0,0.00020547,2]
[375834605,1753755053141,-621.58,0.00020547,2]
[375834606,1753755053155,-460.0,0.00020547,2]
[375834607,1753755053169,-460.0,0.00020547,2]
[375834608,1753755053184,-460.0,0.00020547,2]
[375834609,1753755053200,-460.0,0.00020547,2]
[375834610,1753755053216,-460.0,0.00020547,2]
[375834611,1753755053230,-460.0,0.00020547,2]
[375834612,1753755053241,-460.0,0.00020547,2]
[375834613,1753755053251,-460.0,0.00020547,2]
[375834615,1753755053263,-694.99,0.00020547,2]
[375834616,1753755053276,-460.0,0.00020547,2]
[375834618,1753755053292,-501.7,0.00020547,2]
[375834621,1753755053306,-460.0,0.00020547,2]
[375834623,1753755053318,-469.66996714,0.00020547,2]
[375834625,1753755053330,-460.0,0.00020547,2]
[375834627,1753755053343,-672.37,0.00020547,2]
[375834629,1753755053355,-460.0,0.00020547,2]
[375834632,1753755053370,-460.0,0.00020547,2]
[375834634,1753755053383,-460.0,0.00020547,2]
[375834636,1753755053395,-460.0,0.00020547,2]
[375834638,1753755053406,-460.0,0.00020547,2]
[375834640,1753755053418,-363.09443268,0.00020547,2]
[375834642,1753755053430,-460.0,0.00020547,2]
[375834644,1753755053441,-460.0,0.00020547,2]
[375834647,1753755053454,-460.0,0.00020547,2]
[375834649,1753755053466,-460.0,0.00020547,2]
[375834651,1753755053478,-519.75,0.00020547,2]
[375834653,1753755053490,-468.64273921,0.00020547,2]
[375834655,1753755053502,-460.0,0.00020547,2]
[375834658,1753755053516,-460.0,0.00020547,2]
[375834660,1753755053528,-460.0,0.00020547,2]
[375834662,1753755053540,-2280.38,0.00020547,2]
[375834664,1753755053552,-503.62,0.00020547,2]
[375834667,1753755053564,-1575.63,0.00020547,2]
[375834669,1753755053577,-460.0,0.00020547,2]
[375834671,1753755053590,-460.0,0.00020547,2]
[375834674,1753755053601,-460.0,0.00020547,2]
[375834676,1753755053613,-460.0,0.00020547,2]
[375834678,1753755053625,-460.0,0.00020547,2]
[375834680,1753755053640,-460.0,0.00020547,2]
[375834682,1753755053652,-770.62,0.00020547,2]
[375834684,1753755053665,-723.15,0.00020547,2]
[375834687,1753755053679,-460.0,0.00020547,2]
[375834689,1753755053692,-460.0,0.00020547,2]
[375834691,1753755053704,-460.0,0.00020547,2]
[375834693,1753755053717,-2380.13,0.00020547,2]